{"text_format":"3","workbook":"xlsx","n_sheets":2,"sheets":["Hygiene Service Delivery Break","Pricing Schedule - Unit Price"],"not_rendered":{"defined_names":1},"read":"whole","date_system":"1900"}

{"sheet":"Hygiene Service Delivery Break","index":0,"n_rows":91,"n_cols":6,"rows_kept":91,"merged":[[0,0,0,5],[2,0,6,0],[2,1,6,1],[2,2,6,2],[2,3,6,3],[2,4,6,4],[2,5,6,5],[7,0,12,0],[7,1,12,1],[7,2,12,2],[7,3,12,3],[7,4,12,4],[7,5,12,5],[13,0,17,0],[13,1,17,1],[13,2,17,2],[13,3,17,3],[13,4,17,4],[13,5,17,5],[18,0,23,0],[18,1,23,1],[18,2,23,2],[18,3,23,3],[18,4,23,4],[18,5,23,5],[24,0,28,0],[24,1,28,1],[24,2,28,2],[24,3,28,3],[24,4,28,4],[24,5,28,5],[30,0,31,5],[33,1,35,1],[36,0,37,0],[36,1,37,1],[38,0,39,0],[38,1,39,1],[40,0,41,0],[40,1,41,1],[42,0,43,0],[42,1,43,1],[46,0,47,0],[46,1,47,1],[48,0,49,0],[48,1,49,1],[50,0,51,0],[50,1,51,1],[52,0,53,0],[52,1,53,1],[54,0,56,0],[54,1,56,1],[57,0,58,0],[57,1,58,1],[59,0,60,0],[59,1,60,1],[62,0,62,2],[76,0,76,2]]}
["REQUEST FOR QUOTATION OF THE APPOINTMENT OF A SERVICE PROVIDER TO PROVIDE HYGIENE AND PEST CONTROL SERVICES FOR THE NATIONAL LOTTERIES COMMISSION FREE STATE OFFICE FOR A PERIOD OF 5 YEARS "]
["Client Name, Email Address & Contact No of Client","Scope of services ","Contract Value ","Start date ","End date ","Project Duration  "]
{"$rows_empty":28}
["ANNEXURE B: SUPPLY, INSTALLATION AND MAINTANANCE OF HYGIENE DISPENSERS AND HYGINE DISPOSAL OF BINS"]
[]
[]
[null,"Quantity"]
["Supply, Installation and Maintenance of Dispensers"]
[]
["Supply and installation of Automatic Stainless-steel range liquid gel Seat wipes dispensers",10]
[]
["Supply and installation of Stainless-steel range automated air freshener dispensers",10]
[]
["Supply of 18 litre Stainless-steel range pedal operated feminine hygiene disposal bins ",7]
[]
["Supply and installation of Stainless-steel range feminine hygiene disposal bag dispenser ",7]
[]
["supply and installation of Automatic Stainless-steel range 3 tier toilet roll dispenser in all toilets cubicles",10]
["Supply and installation of Automatic Stainless-steel range hand sanitizer dispensers for the bathrooms",5]
["Supply and installation of Automatic Stainless-steel range hand lotion dispensers for the bathrooms ",5]
[]
[" Supply and installation of Automatic Stainless-steel range bathroom hand towel dispensers ",5]
[]
["Supply and installation of Stainless-steel range wall wastepaper disposal bins for all bathrooms",5]
[]
["Supply and installation of Automatic Stainless-steel range kitchen hand towel dispensers",1]
[]
["Supply and installation of Automatic Stainless-steel range hand sanitiser dispenser for all kitchens",1]
[]
[]
["Supply and installation of Automatic Stainless-steel range dishwasher soap dispenser for kitchens ",1]
[]
["Supply and installation of Automatic Stainless-steel range hand lotion dispenser for kitchens ",1]
[]
[]
["ANNEXURE C: SERVICE PROVISION: DEEP CLEANING, FUMIGATION, PEST CONTROL AND EQUIPMENT SERVICING PER MONTHS"]
[" "]
["Description","Quantity ","Frequency "]
["Deep cleaning of kitchen sink",1,"Monthly / when necessary"]
["Deep cleaning of Toilet bowls ",10,"Monthly / when necessary"]
["Deep cleaning of hand wash basins ",9,"Monthly / when necessary"]
["Deep cleaning of urinal bowls ",3,"Monthly / when necessary"]
["Deep cleaning of carpet areas ","Approximately 70m²","Half-yearly (once every 6 months over the weekend"]
["Deep cleaning of tiled areas","Approximately 67m²","Quarterly "]
["Cleaning of interior and exterior windows ","Approximately 30","Quarterly "]
["Fumigation ","589m²","Half-yearly (once every 6 months) over weekends"]
["Pest control (treatment of rodents and all crawling insects with relevant paste and environmentally compliant chemicals) including installation of bait station ","589m²","As and when required"]
["Servicing and repair of hygiene equipment ","Based on the number of equipments installed (approximatley 69","Monthly "]
[]
["ANNEXURE D: SUPPLY OF CONSUMABLES AND EQUIPMENT SERVICING PER MONTHS"]
[]
["Description ","Free State (Welkom office)"]
["Replenish double ply hand paper roller towel for kitchens and bathrooms (6 packs of 6)",4]
["Replenish hand liquid / foam soap (5 litres)",2]
["Replenish dishwasher soap for kitchens (5 litres) ",2]
["Replenish hand lotion dispensers (5 litres)",1]
["Replenish liquid antibacterial gel for seat wipes dispenser (5 litres)",2]
["Replenish air fresheners for dispensers once a month and replacement of batteries as and when required.","One (1) per month"]
["Replenish double ply first grade biodegradable toilet paper (pack of 48) ",5]
["Collection of feminine hygiene disposal bins and replenish waste liners with antimicrobial protection once a week.","Weekly "]
["Replenish feminine hygiene disposal bag ","Weekly "]
["Replenish wall wastepaper bin liners.","1 pack per month"]
["Supply anti-urinal mats – gradual fragrance release 30+ days.",4]
["Supply 5 litre of a minimum 70% alcohol-based sanitizer once a month. ",2]

{"sheet":"Pricing Schedule - Unit Price","index":1,"n_rows":53,"n_cols":11,"rows_kept":53,"merged":[[0,0,0,10],[1,0,1,10],[3,0,3,10],[5,0,5,10],[20,0,20,10],[33,0,33,10],[49,1,49,9]]}
["REQUEST FOR QUOTATION OF THE APPOINTMENT OF A SERVICE PROVIDER TO PROVIDE HYGIENE AND PEST CONTRL SERVICES OF THE NATIONAL LOTTERIES COMMISSION"]
["PRICING SCHEDULE FOR HYGIENE AND PEST CONTROL FOR NLC WELKOM"]
["No","Description","Delivery Frequency",null,"Unit Cost"]
["This BOQ/ Pricing Schedule provides a detailed breakdown of the costs for the supply, installation, maintenance, and monthly services of dispensers at  NLC Welkom. Each row allows for clear tracking of the Item and service costs. The total annual cost can be calculated by filling in the unit costs for each service and Item."]
[null,null,"Frequency ","Quantity","Price Vat IE5:M5nc. Year 1","Price Vat Inc. Year 2","Price Vat Inc. Year 3","Monthly -Year 1","Monthly -Year 2","Monthly -Year 3","Total Value : 5 Years Inc. Vat"]
["ANNEXURE B: SUPPLY, INSTALLATION AND MAINTENANCE OF DISPENSERS "]
[1,"Supply, installation, rental and maintenance of Automatic Stainless-Steel range liquid gel seat wipes dispensers ","Once-off",10,{"v":0,"d":"R0.00"},{"v":0,"d":"R0.00"},{"v":0,"d":"R0.00"},{"v":0,"d":"R0.00"},{"v":0,"d":"R0.00"},{"v":0,"d":"R0.00"},{"$f":"SUM(E7:J7)","v":{"v":0,"d":"R0.00"}}]
[2,"Supply, installation, rental and maintenance of Automatic Stainless-Steel air freshner dispensers ","Once-off",10,{"v":0,"d":"R0.00"},{"v":0,"d":"R0.00"},{"v":0,"d":"R0.00"},{"v":0,"d":"R0.00"},{"v":0,"d":"R0.00"},{"v":0,"d":"R0.00"},{"$f":"SUM(E8:J8)","v":{"v":0,"d":"R0.00"}}]
[3,"Supply, installation, rental and maintenance of  Stainless-Steel pedal operated feminine hygiene dispensers ","Once-off",7,{"v":0,"d":"R0.00"},{"v":0,"d":"R0.00"},{"v":0,"d":"R0.00"},{"v":0,"d":"R0.00"},{"v":0,"d":"R0.00"},{"v":0,"d":"R0.00"},{"v":0,"d":"R0.00"}]
[4,"Supply, installation, rental and maintenance of  Stainless-Steel disposal bag feminine hygiene dispensers ","Once-off",7,{"v":0,"d":"R0.00"},{"v":0,"d":"R0.00"},{"v":0,"d":"R0.00"},{"v":0,"d":"R0.00"},{"v":0,"d":"R0.00"},{"v":0,"d":"R0.00"},{"v":0,"d":"R0.00"}]
[5,"Supply, installation, rental and maintenance of Stainless-Steel range 3 tier  toilet roll dispensers in all toilte's cubicles ","Once-off",10,{"v":0,"d":"R0.00"},{"v":0,"d":"R0.00"},{"v":0,"d":"R0.00"},{"v":0,"d":"R0.00"},{"v":0,"d":"R0.00"},{"v":0,"d":"R0.00"},{"v":0,"d":"R0.00"}]
[6,"Supply, installation, rental and maintenance of Automatic Stainless-Steel range hand sanitiser dispensers for the bathrooms ","Once-off",5,{"v":0,"d":"R0.00"},{"v":0,"d":"R0.00"},{"v":0,"d":"R0.00"},{"v":0,"d":"R0.00"},{"v":0,"d":"R0.00"},{"v":0,"d":"R0.00"},{"v":0,"d":"R0.00"}]
[7,"Supply, installation, rental and maintenance of Automatic Stainless-Steel range hand lotion dispensers for the bathrooms ","Once-off",5,{"v":0,"d":"R0.00"},{"v":0,"d":"R0.00"},{"v":0,"d":"R0.00"},{"v":0,"d":"R0.00"},{"v":0,"d":"R0.00"},{"v":0,"d":"R0.00"},{"v":0,"d":"R0.00"}]
[8,"Supply, installation, rental and maintenance of Automatic Stainless-Steel range soap dispensers for the bathrooms ","Once-off",5,{"v":0,"d":"R0.00"},{"v":0,"d":"R0.00"},{"v":0,"d":"R0.00"},{"v":0,"d":"R0.00"},{"v":0,"d":"R0.00"},{"v":0,"d":"R0.00"},{"v":0,"d":"R0.00"}]
[null,"Supply, installation, rental and maintenance of  Stainless-Steel range disposal bins for the bathrooms","Once-off",5,{"v":0,"d":"R0.00"},{"v":0,"d":"R0.00"},{"v":0,"d":"R0.00"},{"v":0,"d":"R0.00"},{"v":0,"d":"R0.00"},{"v":0,"d":"R0.00"},{"v":0,"d":"R0.00"}]
[9,"Supply, installation, rental and maintenance of Automatic Stainless-Steel range hand towel dispensers for the bathrooms","Once-off",5,{"v":0,"d":"R0.00"},{"v":0,"d":"R0.00"},{"v":0,"d":"R0.00"},{"v":0,"d":"R0.00"},{"v":0,"d":"R0.00"},{"v":0,"d":"R0.00"},{"v":0,"d":"R0.00"}]
[10,"Supply, installation, rental and maintenance of Automatic Stainless-Steel range dishwasher soap dispensers for the kitchens","Once-off",1,{"v":0,"d":"R0.00"},{"v":0,"d":"R0.00"},{"v":0,"d":"R0.00"},{"v":0,"d":"R0.00"},{"v":0,"d":"R0.00"},{"v":0,"d":"R0.00"},{"v":0,"d":"R0.00"}]
[11,"Supply, installation, rental and maintenance of Automatic Stainless-Steel range hand sanitiser dispensers for the kitchens ","Once-off",1,{"v":0,"d":"R0.00"},{"v":0,"d":"R0.00"},{"v":0,"d":"R0.00"},{"v":0,"d":"R0.00"},{"v":0,"d":"R0.00"},{"v":0,"d":"R0.00"},{"v":0,"d":"R0.00"}]
[12,"Supply, installation, rental and maintenance of Automatic Stainless-Steel range hand towel dispensers for the kitchens","Once-off",1,{"v":0,"d":"R0.00"},{"v":0,"d":"R0.00"},{"v":0,"d":"R0.00"},{"v":0,"d":"R0.00"},{"v":0,"d":"R0.00"},{"v":0,"d":"R0.00"},{"v":0,"d":"R0.00"}]
[{"$nulls":10},{"$f":"SUM(K7:K19)","v":{"v":0,"d":"R0.00"}}]
["ANNEXURE C: SERVICE PROVISION: DEEP CLEANING, FUMIGATION, PEST CONTROL AND EQUIPMENT SERVICING "]
[null,"Description ","Frequency","Quantity","Total Value : 1 Years Inc. Vat","Total Value : 2 Years Inc. Vat","Total Value : 3 Years Inc. Vat","Monthly -Year 1","Monthly -Year 2","Monthly -Year 3","Total Value : 5 Years Inc. Vat"]
[1,"Deep cleaning of kitchen sink ","Monthly ",1,{"v":0,"d":"R0.00"},{"v":0,"d":"R0.00"},{"v":0,"d":"R0.00"},{"v":0,"d":"R0.00"},{"v":0,"d":"R0.00"},{"v":0,"d":"R0.00"},{"$f":"SUM(E23:J23)","v":{"v":0,"d":"R0.00"}}]
[2,"Deep cleaning of toilet bowl","Monthly ",10,{"v":0,"d":"R0.00"},{"v":0,"d":"R0.00"},{"v":0,"d":"R0.00"},{"v":0,"d":"R0.00"},{"v":0,"d":"R0.00"},{"v":0,"d":"R0.00"},{"$f":"SUM(E24:J24)","v":{"v":0,"d":"R0.00"}}]
[3,"Deep cleaning of hand wash basins","Monthly ",9,{"v":0,"d":"R0.00"},{"v":0,"d":"R0.00"},{"v":0,"d":"R0.00"},{"v":0,"d":"R0.00"},{"v":0,"d":"R0.00"},{"v":0,"d":"R0.00"},{"v":0,"d":"R0.00"}]
[4,"Deep cleaning of urinals","Monthly ",3,{"v":0,"d":"R0.00"},{"v":0,"d":"R0.00"},{"v":0,"d":"R0.00"},{"v":0,"d":"R0.00"},{"v":0,"d":"R0.00"},{"v":0,"d":"R0.00"},{"v":0,"d":"R0.00"}]
[6,"Deep cleaning of carpeted area","Half yearly (once every six (6) months","Approximately 70m²",{"v":0,"d":"R0.00"},{"v":0,"d":"R0.00"},{"v":0,"d":"R0.00"},{"v":0,"d":"R0.00"},{"v":0,"d":"R0.00"},{"v":0,"d":"R0.00"},{"v":0,"d":"R0.00"}]
[7,"Deep cleaning of tiled area","Half yearly (once every six (6) months","Approximately 67m²",{"v":0,"d":"R0.00"},{"v":0,"d":"R0.00"},{"v":0,"d":"R0.00"},{"v":0,"d":"R0.00"},{"v":0,"d":"R0.00"},{"v":0,"d":"R0.00"},{"v":0,"d":"R0.00"}]
[8,"Fumigation","Quartely ","Approximately 589m²",{"v":0,"d":"R0.00"},{"v":0,"d":"R0.00"},{"v":0,"d":"R0.00"},{"v":0,"d":"R0.00"},{"v":0,"d":"R0.00"},{"v":0,"d":"R0.00"},{"v":0,"d":"R0.00"}]
[9,"Pest control (treatment of rodents and all crawling insects with relevant paste and environmentally compliant chemicals) Installation of bait stations","As and when required ","Approximately 589m²",{"v":0,"d":"R0.00"},{"v":0,"d":"R0.00"},{"v":0,"d":"R0.00"},{"v":0,"d":"R0.00"},{"v":0,"d":"R0.00"},{"v":0,"d":"R0.00"},{"v":0,"d":"R0.00"}]
[10,"cleaning of windows interior and exterior","Quartely ","Approximatley 46",{"v":0,"d":"R0.00"},{"v":0,"d":"R0.00"},{"v":0,"d":"R0.00"},{"v":0,"d":"R0.00"},{"v":0,"d":"R0.00"},{"v":0,"d":"R0.00"},{"v":0,"d":"R0.00"}]
[11,"Servicing and repiar of hygiene equipments","Monthly ","Based on the number of equipments installed (approximately 69)",{"v":0,"d":"R0.00"},{"v":0,"d":"R0.00"},{"v":0,"d":"R0.00"},{"v":0,"d":"R0.00"},{"v":0,"d":"R0.00"},{"v":0,"d":"R0.00"},{"v":0,"d":"R0.00"}]
[{"$nulls":10},{"$f":"SUM(K23:K32)","v":{"v":0,"d":"R0.00"}}]
["ANNEXURE D: CONSUMABLES QUANTITIES "]
[null,"Description ","Frequency","Quantity","Price Vat  Year 1","Price Vat Inc. Year 2","Price Vat Inc. Year 3","Monthly -Year 1","Monthly -Year 2","Monthly -Year 3","Total Value : 5 Years Inc. Vat"]
[1,"Replenish quality double ply hand paper roller towel for kitchens and bathrooms (6 pack of 6)","Monthly",3,{"v":0,"d":"R0.00"},{"v":0,"d":"R0.00"},{"v":0,"d":"R0.00"},{"v":0,"d":"R0.00"},{"v":0,"d":"R0.00"},{"v":0,"d":"R0.00"},{"$f":"SUM(E36:J36)","v":{"v":0,"d":"R0.00"}}]
[2,"Replenish quality double ply first grade biodegradable toilet paper (350 Sheets) for the bathrooms (6 pack of 48)","Monthly",4,{"v":0,"d":"R0.00"},{"v":0,"d":"R0.00"},{"v":0,"d":"R0.00"},{"v":0,"d":"R0.00"},{"v":0,"d":"R0.00"},{"v":0,"d":"R0.00"},{"$f":"SUM(E37:J37)","v":{"v":0,"d":"R0.00"}}]
[3,"Replenish hand liquid/foam soap (5 litres)","Monthly",1,{"v":0,"d":"R0.00"},{"v":0,"d":"R0.00"},{"v":0,"d":"R0.00"},{"v":0,"d":"R0.00"},{"v":0,"d":"R0.00"},{"v":0,"d":"R0.00"},{"v":0,"d":"R0.00"}]
[4,"Replenish hand lotion (5 litres)","Monthly",1,{"v":0,"d":"R0.00"},{"v":0,"d":"R0.00"},{"v":0,"d":"R0.00"},{"v":0,"d":"R0.00"},{"v":0,"d":"R0.00"},{"v":0,"d":"R0.00"},{"v":0,"d":"R0.00"}]
[5,"Replenish hand sanitizer (5 litres)","Monthly",1,{"v":0,"d":"R0.00"},{"v":0,"d":"R0.00"},{"v":0,"d":"R0.00"},{"v":0,"d":"R0.00"},{"v":0,"d":"R0.00"},{"v":0,"d":"R0.00"},{"v":0,"d":"R0.00"}]
[6,"Replenish liquid antibacterial gel for seat wipes dispenser (5 litres) ","Monthly",2,{"v":0,"d":"R0.00"},{"v":0,"d":"R0.00"},{"v":0,"d":"R0.00"},{"v":0,"d":"R0.00"},{"v":0,"d":"R0.00"},{"v":0,"d":"R0.00"},{"v":0,"d":"R0.00"}]
[7,"Replenish air fresheners for for dispensers and replacement of batteries ","Monthly",10,{"v":0,"d":"R0.00"},{"v":0,"d":"R0.00"},{"v":0,"d":"R0.00"},{"v":0,"d":"R0.00"},{"v":0,"d":"R0.00"},{"v":0,"d":"R0.00"},{"v":0,"d":"R0.00"}]
[8,"Cleaning and Collection of feminine hygiene disposable bins and replenish waste liners with antimicrobial protection","Weekly ",8,{"v":0,"d":"R0.00"},{"v":0,"d":"R0.00"},{"v":0,"d":"R0.00"},{"v":0,"d":"R0.00"},{"v":0,"d":"R0.00"},{"v":0,"d":"R0.00"},{"v":0,"d":"R0.00"}]
[9,"Replenish fiminine hygiene disposal bag","Monthly","1 pack of 30",{"v":0,"d":"R0.00"},{"v":0,"d":"R0.00"},{"v":0,"d":"R0.00"},{"v":0,"d":"R0.00"},{"v":0,"d":"R0.00"},{"v":0,"d":"R0.00"},{"v":0,"d":"R0.00"}]
[10,"Replenish wall wastepaper bin liners","Monthly","1 pack of 50",{"v":0,"d":"R0.00"},{"v":0,"d":"R0.00"},{"v":0,"d":"R0.00"},{"v":0,"d":"R0.00"},{"v":0,"d":"R0.00"},{"v":0,"d":"R0.00"},{"v":0,"d":"R0.00"}]
[11,"Supply anti-utinal mats - gradual fragnance release 30+ days ","Monthly",4,{"v":0,"d":"R0.00"},{"v":0,"d":"R0.00"},{"v":0,"d":"R0.00"},{"v":0,"d":"R0.00"},{"v":0,"d":"R0.00"},{"v":0,"d":"R0.00"},{"v":0,"d":"R0.00"}]
[12,"Supply 5 litres of a minimum 70% alcohol-based sanitiser ","Monthly",1,{"v":0,"d":"R0.00"},{"v":0,"d":"R0.00"},{"v":0,"d":"R0.00"},{"v":0,"d":"R0.00"},{"v":0,"d":"R0.00"},{"v":0,"d":"R0.00"},{"v":0,"d":"R0.00"}]
[{"$nulls":10},{"$f":"SUM(K36:K47)","v":{"v":0,"d":"R0.00"}}]
[]
[null,"TOTAL COST  : BID PRICE INCLUSIVE OF VAT & ANNUAL ESCALATION ",{"$nulls":8},{"$f":"SUM(K20+K33+K48)","v":{"v":0,"d":"R0.00"}}]
[]
[null,"The prices offer is firm prices with annual escalation"]
[null,"Bidders must include all costs associated with all requirements listed and make provision for necessary price escalation i.e. fuel & inflation wich must be inclided"]